bitfinex/quotes_SOLUSD_20250307
["timestamp","ask_amount","ask_price","bid_price","bid_amount"]
[1741382270600,0.03,143.07,143.01,48.27757001]
[1741382270886,48.27757001,143.06,142.96,30.52964886]
[1741382271082,0.03,143.07,143.01,48.27757001]
[1741382271288,0.03,143.07,143.03,48.27757001]
[1741382271491,0.03,143.07,143.04,48.27757001]
[1741382271914,0.03,143.22,143.05,11.8375]
[1741382272100,0.03,143.22,143.18,48.27757001]
[1741382272599,0.03,143.22,143.09,312.0]
[1741382272808,0.03,143.22,143.06,1.27818497]
[1741382273107,48.27757001,143.15,143.08,48.27757001]
[1741382273399,48.27757001,143.12,143.06,48.27757001]
[1741382273696,48.27757001,143.14,143.07,48.27757001]
[1741382273899,48.27757001,143.12,143.02,25.64164886]
[1741382274086,48.27757001,143.13,143.06,48.27757001]
[1741382274286,51.07207001,143.14,143.07,48.27757001]
[1741382274485,11.88,143.15,143.09,48.27757001]
[1741382275009,11.88,143.15,143.11,48.27757001]
[1741382275183,2.7938,143.17,143.11,48.27757001]
[1741382275384,2.7938,143.17,143.08,66.92721887]
[1741382275385,51.07137001,143.17,143.1,48.27757001]
[1741382275914,48.27757001,143.15,143.04,312.0]
[1741382276088,48.27757001,143.13,143.06,18.64964886]
[1741382276297,51.07227001,143.13,143.06,48.27757001]
[1741382276492,48.27757001,143.11,143.02,18.64964886]
[1741382276694,48.27757001,143.12,143.05,48.27757001]
[1741382277052,48.27757001,143.14,143.07,18.64964886]
[1741382277185,48.27757001,143.13,143.05,48.27757001]
[1741382277381,48.27757001,143.11,143.02,18.64964886]
[1741382277611,48.27757001,143.08,143.02,18.64964886]
[1741382277906,48.27757001,143.07,143.0,48.27757001]
[1741382278077,48.27757001,143.08,143.01,66.92721887]
[1741382278275,60.13757001,143.12,143.04,48.27757001]
[1741382278481,48.27757001,143.11,143.04,18.64964886]
[1741382278707,48.27757001,143.08,143.01,66.92721887]
[1741382278888,48.27757001,143.07,143.0,48.27757001]
[1741382279509,48.27757001,143.06,142.99,48.27757001]
[1741382280306,48.27757001,143.03,142.96,48.27757001]
[1741382280510,48.27757001,143.0,142.92,199.61757001]
[1741382280691,48.27757001,142.98,142.91,48.27757001]
[1741382280902,48.27757001,142.97,142.9,0.033]
[1741382281106,48.27757001,142.96,142.9,0.033]
[1741382282323,2.7981,142.95,142.9,0.033]
[1741382282801,51.07567001,142.95,142.9,0.033]
[1741382283005,48.27757001,142.91,142.9,0.033]
[1741382283635,21.6535,142.95,142.9,0.033]
[1741382283931,48.27757001,142.94,142.9,0.033]
[1741382284096,21.6535,142.95,142.9,0.033]
[1741382284097,48.27757001,142.91,142.9,0.033]
[1741382284301,2.7991,142.9,142.88,0.033]
[1741382284547,48.27757001,142.89,142.88,0.033]
[1741382284892,18.8557,142.95,142.88,0.033]
[1741382284893,9.5176,143.02,142.88,0.033]
[1741382285202,48.27757001,142.91,142.88,0.033]
[1741382285408,2.0,142.97,142.88,0.033]
[1741382285798,2.0,142.92,142.88,0.033]
[1741382286006,20.64964886,142.9,142.74,0.033]
[1741382286200,2.0,142.85,142.74,0.033]
[1741382286394,48.27757001,142.77,142.74,0.033]
[1741382286626,48.27757001,142.75,142.74,0.033]
[1741382287301,48.27757001,142.75,142.63,48.27757001]
[1741382287618,48.27757001,142.75,142.61,7.7777]
[1741382287619,48.27757001,142.67,142.61,7.7777]
[1741382287833,48.27757001,142.66,142.59,48.27757001]
[1741382288032,18.64964886,142.72,142.54,7.8822]
[1741382288033,48.27757001,142.65,142.58,48.27757001]
[1741382288341,60.13757001,142.7,142.64,48.27757001]
[1741382288544,14.6618,142.77,142.67,48.27757001]
[1741382288832,18.64964886,142.76,142.64,48.27757001]
[1741382289041,18.64964886,142.73,142.55,36.4117]
[1741382289201,48.27757001,142.7,142.63,48.27757001]
[1741382289406,48.27757001,142.68,142.62,48.27757001]
[1741382289640,48.27757001,142.68,142.61,48.27757001]
[1741382289931,48.27757001,142.73,142.62,48.27757001]
[1741382289932,48.27757001,142.69,142.62,48.27757001]
[1741382290145,48.27757001,142.71,142.64,48.27757001]
[1741382290311,18.64964886,142.74,142.57,18.64964886]
[1741382290312,48.27757001,142.67,142.57,18.64964886]
[1741382290513,11.86,142.7,142.57,18.64964886]
[1741382290737,18.64964886,142.69,142.54,14.8975]
[1741382291041,48.27757001,142.63,142.56,48.27757001]
[1741382291339,48.27757001,142.64,142.57,48.27757001]
[1741382291509,48.27757001,142.62,142.55,0.033]
[1741382291832,48.27757001,142.62,142.55,48.31057001]
[1741382292092,48.27757001,142.6,142.55,0.033]
[1741382292241,18.64964886,142.64,142.55,0.033]
[1741382292807,48.27757001,142.59,142.55,0.033]
[1741382293009,48.27757001,142.62,142.55,48.31057001]
[1741382293447,11.86,142.62,142.55,0.033]
[1741382293622,20.64964886,142.61,142.55,0.033]
[1741382294130,18.64964886,142.59,142.55,0.033]
[1741382294334,48.27757001,142.56,142.55,0.033]
[1741382294554,2.8054,142.59,142.55,0.033]
[1741382294752,48.27757001,142.62,142.55,0.033]
[1741382295034,18.64964886,142.64,142.55,0.033]
[1741382295240,20.64964886,142.64,142.55,0.033]
[1741382295412,18.64964886,142.61,142.55,0.033]
[1741382296239,18.64964886,142.59,142.55,0.033]
[1741382296443,60.15757001,142.58,142.55,0.033]
[1741382296646,2.8048,142.61,142.53,0.033]
[1741382296949,48.27757001,142.54,142.53,0.033]
[1741382297523,48.27757001,142.56,142.53,0.033]
[1741382297754,48.27757001,142.54,142.53,0.033]
[1741382298456,99.36134002,142.54,142.41,55.29947001]
[1741382298643,48.27757001,142.48,142.41,55.29947001]
[1741382299263,60.15757001,142.53,142.46,48.27757001]
[1741382299569,48.27757001,142.48,142.41,55.29947001]
[1741382300054,48.27757001,142.47,142.41,7.0219]
[1741382300225,48.27757001,142.48,142.41,55.29947001]
[1741382300425,48.27757001,142.52,142.44,48.27757001]
[1741382300624,48.27757001,142.51,142.44,48.27757001]
[1741382300848,48.27757001,142.51,142.44,23.83280237]
[1741382301160,14.6864,142.53,142.46,48.27757001]
[1741382301161,60.15757001,142.53,142.46,48.27757001]
[1741382301665,60.15757001,142.53,142.41,24.5768]
[1741382301666,48.27757001,142.49,142.42,48.27757001]
[1741382301829,48.27757001,142.48,142.41,55.29947001]
[1741382302031,48.27757001,142.49,142.42,48.27757001]
[1741382302329,48.27757001,142.49,142.41,7.0219]
[1741382302330,14.6864,142.53,142.44,48.27757001]
[1741382302625,48.27757001,142.51,142.44,48.27757001]
[1741382302844,14.6864,142.53,142.44,48.27757001]
[1741382303049,48.27757001,142.52,142.45,48.27757001]
[1741382303257,48.27757001,142.51,142.44,48.27757001]
[1741382303462,48.27757001,142.5,142.44,48.27757001]
[1741382303632,60.15757001,142.53,142.47,48.27757001]
[1741382303838,60.15757001,142.53,142.46,48.27757001]
[1741382304065,14.6854,142.58,142.5,48.27757001]
[1741382304363,14.6854,142.58,142.43,18.64964886]
[1741382304543,21.699,142.58,142.44,17.5512]
[1741382304744,51.08297001,142.58,142.51,48.27757001]
[1741382304948,211.91757001,142.59,142.52,48.27757001]
[1741382305144,211.91757001,142.59,142.44,17.5512]
[1741382305145,48.27757001,142.55,142.48,48.27757001]
[1741382305345,48.27757001,142.54,142.47,48.27757001]
[1741382305562,48.27757001,142.53,142.46,48.27757001]
[1741382305755,48.27757001,142.53,142.43,18.64964886]
[1741382305756,48.27757001,142.51,142.44,48.27757001]
[1741382305967,48.27757001,142.52,142.45,48.27757001]
[1741382306337,48.27757001,142.51,142.42,7.0214]
[1741382306562,48.27757001,142.52,142.45,48.27757001]
[1741382306765,48.27757001,142.54,142.42,18.64964886]
[1741382306968,48.27757001,142.51,142.44,48.27757001]
[1741382307141,48.27757001,142.5,142.44,48.27757001]
[1741382307749,9.8196,142.57,142.47,48.27757001]
[1741382307970,2.8056,142.57,142.5,48.27757001]
[1741382308138,51.08317001,142.57,142.5,48.27757001]
[1741382308670,48.27757001,142.54,142.47,48.27757001]
[1741382308842,48.27757001,142.51,142.45,55.29747001]
[1741382309045,21.6796,142.57,142.46,48.27757001]
[1741382309346,48.27757001,142.55,142.45,7.0199]
[1741382309544,14.6656,142.57,142.51,48.27757001]
[1741382309847,51.08277001,142.59,142.52,48.27757001]
[1741382310050,48.27757001,142.54,142.45,7.0199]
[1741382310249,48.27757001,142.53,142.46,48.27757001]
[1741382310463,48.27757001,142.52,142.46,48.27757001]
[1741382310782,48.27757001,142.51,142.44,48.27757001]
[1741382311064,48.27757001,142.45,142.41,0.033]
[1741382311258,48.27757001,142.42,142.41,0.033]
[1741382311457,11.86,142.44,142.41,0.033]
[1741382311837,48.27757001,142.42,142.41,0.033]
[1741382312166,66.92721887,142.42,142.38,0.0001]
[1741382312338,115.20478888,142.39,142.38,0.0001]
[1741382312544,118.01388888,142.39,142.38,0.0001]
[1741382312972,99.36424002,142.39,142.38,0.0001]
[1741382313150,51.08667001,142.39,142.38,0.0001]
[1741382313471,2.8091,142.39,142.38,0.0001]
[1741382313638,11.86,142.4,142.38,0.0001]
[1741382313839,48.27757001,142.39,142.38,0.0001]
[1741382314073,115.20478888,142.39,142.38,0.0001]
[1741382314281,18.64964886,142.38,142.29,1.9909916]
[1741382314595,48.27757001,142.31,142.29,1.9909916]
[1741382314742,48.27757001,142.32,142.29,1.9909916]
[1741382314936,48.27757001,142.34,142.29,1.9909916]
[1741382315147,48.27757001,142.35,142.29,1.9909916]
[1741382315358,48.27757001,142.36,142.29,50.26856161]
[1741382315555,48.27757001,142.39,142.32,48.27757001]
[1741382315752,11.86,142.48,142.29,9.0187916]
[1741382316039,18.64964886,142.46,142.29,1.9909916]
[1741382316260,20.64964886,142.46,142.29,1.9909916]
[1741382316571,18.64964886,142.46,142.29,9.0187916]
[1741382316871,2.808,142.45,142.29,9.0187916]
[1741382317165,48.27757001,142.45,142.34,48.27757001]
[1741382317358,48.27757001,142.43,142.36,48.27757001]
[1741382317538,48.27757001,142.44,142.37,48.27757001]
[1741382318041,48.27757001,142.45,142.38,48.27757001]
[1741382318242,48.27757001,142.47,142.4,48.27757001]
[1741382318650,48.27757001,142.46,142.39,55.30037001]
[1741382319058,48.27757001,142.47,142.4,48.27757001]
[1741382319780,48.27757001,142.46,142.4,48.27757001]
[1741382320160,48.27757001,142.44,142.38,48.27757001]
[1741382320475,48.27757001,142.47,142.4,48.27757001]
[1741382320684,48.27757001,142.49,142.42,55.29857001]
[1741382320982,48.27757001,142.53,142.46,48.27757001]
[1741382321283,48.27757001,142.53,142.47,48.27757001]
[1741382321692,11.86,142.57,142.48,48.27757001]
[1741382321693,14.6656,142.57,142.48,48.27757001]
[1741382321983,48.27757001,142.52,142.45,48.27757001]
[1741382322178,48.27757001,142.55,142.48,48.27757001]
[1741382322492,2.805,142.6,142.45,60.13757001]
[1741382322781,48.27757001,142.59,142.53,7.016]
[1741382322965,48.27757001,142.59,142.52,55.29387001]
[1741382323160,48.27757001,142.54,142.48,48.27757001]
[1741382323385,48.27757001,142.58,142.47,14.3287]
[1741382323575,48.27757001,142.6,142.48,18.64964886]
[1741382323755,0.03,142.62,142.48,3.0522535]
[1741382323958,0.03,142.62,142.5,18.64964886]
[1741382324161,0.03,142.62,142.54,18.64964886]
[1741382324373,0.03,142.62,142.59,48.27757001]
[1741382324573,0.03,142.62,142.58,48.27757001]
[1741382325359,0.03,142.62,142.6,48.27757001]
[1741382325864,0.03,142.62,142.51,2.33495737]
[1741382325865,48.27757001,142.61,142.55,48.27757001]
[1741382326066,0.03,142.62,142.52,48.27757001]
[1741382326283,48.27757001,142.54,142.47,7.3098]
[1741382326590,18.64964886,142.61,142.47,7.3098]
[1741382326779,11.89,142.62,142.47,7.3098]
[1741382326982,9.8176,142.6,142.47,7.3098]
[1741382327176,9.8176,142.6,142.41,18.8815]
[1741382327491,48.27757001,142.51,142.45,48.27757001]
[1741382327984,48.27757001,142.52,142.4,7.9493]
[1741382328165,48.27757001,142.48,142.41,48.27757001]
[1741382328891,9.822,142.54,142.44,48.27757001]
[1741382329095,48.27757001,142.52,142.45,48.27757001]
[1741382329270,60.11757001,142.55,142.48,48.27757001]
[1741382329466,48.27757001,142.52,142.42,18.64964886]
[1741382329662,0.03,142.64,142.49,48.27757001]
[1741382329879,0.03,142.64,142.45,30.48964886]
[1741382330184,2.8048,142.61,142.47,18.64964886]
[1741382330559,9.8169,142.61,142.44,18.64964886]
[1741382330883,48.27757001,142.56,142.49,48.27757001]
[1741382331085,2.806,142.55,142.49,48.27757001]
[1741382331477,2.806,142.55,142.46,48.27757001]
[1741382331478,48.27757001,142.53,142.46,48.27757001]
[1741382331677,48.27757001,142.52,142.45,48.27757001]
[1741382332093,2.8054,142.58,142.48,48.27757001]
[1741382332392,48.27757001,142.56,142.49,48.27757001]
[1741382332593,48.27757001,142.54,142.43,18.64964886]
[1741382332769,48.27757001,142.53,142.47,48.27757001]
[1741382333093,2.8066,142.52,142.46,48.27757001]
[1741382333261,48.27757001,142.49,142.4,7.9493]
[1741382333585,2.8066,142.52,142.44,48.27757001]
[1741382333783,2.8066,142.52,142.4,32.5275]
[1741382333784,48.27757001,142.48,142.42,48.27757001]
[1741382334090,9.8231,142.52,142.41,48.27757001]
[1741382334572,18.64964886,142.51,142.4,7.9493]
[1741382334976,18.64964886,142.53,142.4,7.9493]
[1741382335288,48.27757001,142.46,142.4,7.9493]
[1741382335463,48.27757001,142.49,142.42,48.27757001]
[1741382336295,48.27757001,142.51,142.44,48.27757001]
[1741382336671,2.8066,142.52,142.44,48.27757001]
[1741382336872,48.27757001,142.5,142.43,48.27757001]
[1741382337274,51.08467001,142.5,142.43,48.27757001]
[1741382337466,48.27757001,142.48,142.41,48.27757001]
[1741382337662,48.27757001,142.47,142.4,56.22687001]
[1741382337867,48.27757001,142.45,142.4,7.9493]
[1741382338089,48.27757001,142.52,142.41,48.27757001]
[1741382338285,48.27757001,142.51,142.44,48.27757001]
[1741382338966,48.27757001,142.5,142.43,48.27757001]
[1741382339165,48.27757001,142.51,142.44,48.27757001]
[1741382339365,48.27757001,142.59,142.48,48.27757001]
[1741382339697,48.27757001,142.6,142.53,48.27757001]
[1741382339881,48.27757001,142.58,142.51,48.27757001]
[1741382340081,48.27757001,142.55,142.48,48.27757001]
[1741382340271,48.27757001,142.55,142.45,24.57]
[1741382340272,2.8048,142.61,142.45,25.62257745]
[1741382340466,2.8048,142.61,142.46,18.64964886]
[1741382340685,0.03,142.62,142.5,18.64964886]
[1741382340994,0.03,142.62,142.53,20.64964886]
[1741382341165,0.03,142.62,142.53,30.46964886]
[1741382341362,48.27757001,142.61,142.54,48.27757001]
[1741382341578,0.03,142.62,142.57,48.27757001]
[1741382341798,0.03,142.62,142.6,48.27757001]
[1741382342002,0.03,142.62,142.61,48.27757001]
[1741382342568,0.03,142.62,142.61,66.92721887]
[1741382343197,0.03,142.62,142.61,48.27757001]
[1741382343363,0.03,142.64,142.62,25.66124886]
[1741382343580,0.03,142.76,142.7,48.27757001]
[1741382343780,0.03,142.76,142.71,48.27757001]
[1741382343985,0.03,142.76,142.74,48.27757001]
[1741382344191,0.03,142.76,142.75,48.27757001]
[1741382344697,0.03,142.76,142.67,18.64964886]
[1741382345003,0.03,142.76,142.66,3.714]
[1741382345294,2.8319,142.76,142.66,3.714]
[1741382345502,0.03,142.76,142.69,2.0]
[1741382345677,0.03,142.76,142.71,18.64964886]
[1741382345878,0.03,142.77,142.75,48.27757001]
[1741382346204,0.03,142.77,142.76,66.92721887]
[1741382346505,2.7995,142.88,142.82,48.27757001]
[1741382346812,51.07547001,142.96,142.87,48.27757001]
[1741382346994,48.27757001,142.91,142.84,48.27757001]
[1741382347192,48.27757001,142.91,142.8,60.07757001]
[1741382347193,48.27757001,142.89,142.8,11.8]
[1741382347375,9.7928,142.96,142.8,18.64964886]
[1741382347578,9.7928,142.96,142.79,3.7571]
[1741382347779,48.27757001,142.89,142.82,48.27757001]
[1741382347983,48.27757001,142.9,142.83,48.27757001]
[1741382348188,18.64964886,142.94,142.84,48.27757001]
[1741382348375,48.27757001,142.9,142.83,48.27757001]
[1741382348571,48.27757001,142.87,142.79,3.7571]
[1741382348870,66.92721887,142.94,142.78,48.27757001]
[1741382348871,48.27757001,142.85,142.78,48.27757001]
[1741382349099,48.27757001,142.85,142.73,73.93321887]
[1741382349100,48.27757001,142.87,142.8,48.27757001]
[1741382349296,11.8,142.91,142.74,18.64964886]
[1741382349609,28.44664886,142.9,142.72,11.6823]
[1741382349775,18.64964886,142.89,142.72,11.6823]
[1741382350085,20.64964886,142.89,142.72,11.6823]
[1741382350287,48.27757001,142.77,142.66,48.27757001]
[1741382350490,48.27757001,142.75,142.68,48.27757001]
[1741382350680,48.27757001,142.77,142.7,48.27757001]
[1741382350903,48.27757001,142.76,142.69,48.27757001]
[1741382351403,2.8028,142.71,142.65,7.9246]
[1741382351607,2.8028,142.71,142.65,56.20217001]
[1741382351912,48.27757001,142.76,142.69,48.27757001]
[1741382352208,48.27757001,142.76,142.7,48.27757001]
[1741382352383,60.07757001,142.8,142.66,18.64964886]
[1741382352384,48.27757001,142.78,142.66,18.64964886]
[1741382352578,11.8,142.8,142.72,48.27757001]
[1741382352579,48.27757001,142.79,142.72,48.27757001]
[1741382352777,60.07757001,142.8,142.73,48.27757001]
[1741382353085,48.27757001,142.8,142.73,48.27757001]
[1741382353912,60.05757001,142.83,142.76,48.27757001]
[1741382354201,11.78,142.83,142.78,48.27757001]
[1741382354408,48.27757001,142.85,142.73,48.27757001]
[1741382354409,48.27757001,142.85,142.79,48.27757001]
[1741382354594,151.76,142.88,142.8,48.27757001]
[1741382354776,48.27757001,142.89,142.83,48.27757001]
[1741382355211,60.05757001,142.9,142.84,48.27757001]
[1741382355517,48.27757001,142.85,142.67,17.5221]
[1741382355814,48.27757001,142.8,142.68,18.64964886]
[1741382356023,48.27757001,142.78,142.67,7.0091]
[1741382356226,11.78,142.83,142.72,48.27757001]
[1741382356421,48.27757001,142.78,142.71,48.27757001]
[1741382356624,48.27757001,142.77,142.7,48.27757001]
[1741382356802,48.27757001,142.77,142.67,7.0091]
[1741382357007,48.27757001,142.76,142.69,48.27757001]
[1741382357202,48.27757001,142.76,142.66,7.0095]
[1741382357203,18.64964886,142.81,142.65,7.9246]
[1741382357413,18.64964886,142.82,142.65,44.09964886]
[1741382357724,48.27757001,142.81,142.74,48.27757001]
[1741382357927,2.8007,142.82,142.67,18.64964886]
[1741382358089,48.27757001,142.81,142.74,48.27757001]
[1741382358295,60.05757001,142.83,142.76,48.27757001]
[1741382358600,48.27757001,142.8,142.73,48.27757001]
[1741382358815,48.27757001,142.79,142.72,48.27757001]
[1741382359022,48.27757001,142.78,142.71,48.27757001]
[1741382359229,48.27757001,142.81,142.74,48.27757001]
[1741382359523,60.05757001,142.83,142.76,48.27757001]
[1741382359823,60.05757001,142.83,142.77,48.27757001]
[1741382360027,60.05757001,142.83,142.76,48.27757001]
[1741382360721,60.05757001,142.83,142.75,48.27757001]
[1741382360722,48.27757001,142.82,142.75,48.27757001]
[1741382361020,48.27757001,142.78,142.71,48.27757001]
[1741382361193,21.5818,142.83,142.66,60.05757001]
[1741382361194,48.27757001,142.76,142.69,48.27757001]
[1741382361392,48.27757001,142.74,142.68,48.27757001]
[1741382361615,48.27757001,142.74,142.67,48.27757001]
[1741382361804,2.8021,142.75,142.68,48.27757001]
[1741382362014,51.07967001,142.75,142.68,48.27757001]
[1741382362323,2.8013,142.79,142.68,48.27757001]
[1741382362622,2.8013,142.79,142.66,7.0096]
[1741382362623,48.27757001,142.79,142.72,48.27757001]
[1741382362823,48.27757001,142.79,142.66,72.81127001]
[1741382362824,48.27757001,142.8,142.73,48.27757001]
[1741382362995,48.27757001,142.82,142.75,48.27757001]
[1741382363320,2.8002,142.85,142.73,48.27757001]
[1741382363493,51.07777001,142.85,142.78,48.27757001]
[1741382363932,51.07777001,142.85,142.78,55.28117001]
[1741382364229,2.7998,142.87,142.8,48.27757001]
[1741382364538,0.03,142.85,142.8,48.27757001]
[1741382364902,0.03,142.85,142.81,48.27757001]
[1741382365118,0.03,142.85,142.78,24.513]
[1741382365119,0.03,142.85,142.82,48.27757001]
[1741382365421,0.03,142.85,142.84,48.27757001]
[1741382365792,0.03,142.91,142.84,139.70768888]
[1741382365994,0.03,142.91,142.9,48.27757001]
[1741382366996,0.03,142.91,142.9,66.92721887]
[1741382367203,0.03,143.0,142.91,18.64964886]
[1741382367398,0.03,143.0,142.99,48.27757001]
[1741382368328,0.03,143.0,142.92,319.7821]
[1741382368537,0.03,143.0,142.98,48.27757001]
[1741382369497,0.03,143.0,142.97,48.27757001]
[1741382369703,0.03,143.0,142.96,48.27757001]
[1741382369993,0.03,143.0,142.92,7.7821]
[1741382370236,0.03,143.0,142.95,48.27757001]
[1741382370604,48.30757001,143.0,142.93,48.27757001]
[1741382371035,48.27757001,142.99,142.93,48.27757001]
[1741382371333,48.27757001,142.99,142.92,48.27757001]
[1741382371505,0.03,143.0,142.9,18.64964886]
[1741382371704,0.03,143.0,142.98,48.27757001]
[1741382372013,0.03,143.0,142.95,18.64964886]
[1741382372213,0.03,143.0,142.92,18.64964886]
[1741382372520,0.03,143.0,142.91,11.74]
[1741382372723,0.03,143.0,142.88,25.64844886]
[1741382372926,0.03,143.0,142.9,18.64964886]
[1741382373221,0.03,143.0,142.96,48.27757001]
[1741382373798,48.30757001,143.0,142.94,48.27757001]
[1741382374021,2.7973,142.99,142.94,48.27757001]
[1741382374220,0.03,143.0,142.95,48.27757001]
[1741382374529,0.03,143.0,142.94,66.92721887]
[1741382374917,0.03,143.0,142.96,18.64964886]
[1741382375119,0.03,143.0,142.97,1.04860509]
[1741382375309,0.03,143.0,142.98,18.64964886]
[1741382375512,0.03,143.0,142.99,48.27757001]
[1741382376039,0.03,143.0,142.99,73.92061887]
[1741382376205,0.03,143.0,142.99,48.27757001]
[1741382376399,0.03,143.0,142.95,25.64464886]
[1741382376606,0.03,143.0,142.97,48.27757001]
[1741382377020,0.03,143.0,142.96,48.27757001]
[1741382377223,0.03,143.0,142.95,48.27757001]
[1741382377609,0.03,143.0,142.96,48.27757001]
[1741382378530,0.03,143.0,142.97,48.27757001]
[1741382378843,0.03,143.0,142.95,48.27757001]
[1741382379135,48.27757001,142.97,142.91,0.033]
[1741382379513,48.27757001,142.96,142.91,0.033]
[1741382379728,48.27757001,142.95,142.91,0.033]
[1741382380104,48.27757001,142.98,142.91,48.31057001]
[1741382380333,48.27757001,142.98,142.92,48.27757001]
[1741382380538,2.7976,142.98,142.93,48.27757001]
[1741382380911,51.10487001,143.0,142.93,48.27757001]
[1741382381439,0.03,143.0,142.96,48.27757001]
[1741382381644,0.03,143.0,142.95,48.27757001]
[1741382381943,0.03,143.0,142.91,43.17334886]
[1741382381944,51.10477001,143.0,142.93,48.27757001]
[1741382382243,0.03,143.0,142.96,48.27757001]
[1741382382402,0.03,143.0,142.93,25.64554886]
[1741382382403,0.03,143.0,142.94,18.64964886]
[1741382383220,0.03,143.0,142.96,18.64964886]
[1741382383546,0.0001,143.0,142.99,115.20478888]
[1741382384037,0.03,143.06,143.0,18.64964886]
[1741382384246,0.03,143.06,143.05,48.27757001]
[1741382384739,0.03,143.06,143.0,48.27757001]
[1741382384946,48.27757001,143.03,142.95,7.4519]
[1741382385144,48.27757001,143.04,142.95,14.4472]
[1741382385311,0.03,143.06,142.95,14.4472]
[1741382385516,0.03,143.06,142.96,1.04892089]
[1741382385730,0.03,143.06,142.97,30.36964886]
[1741382386036,0.03,143.06,142.99,20.64964886]
[1741382386341,0.03,143.06,143.01,18.64964886]
[1741382386518,0.03,143.06,143.05,48.27757001]
[1741382386835,0.03,143.06,143.05,73.91771887]
[1741382387038,0.0001,143.06,143.05,73.91771887]
[1741382387220,0.03,143.14,143.06,18.64964886]
[1741382387419,0.03,143.14,143.13,48.27757001]
[1741382388134,0.03,143.14,143.13,66.92721887]
[1741382388538,0.0001,143.14,143.13,115.20478888]
[1741382388733,0.0001,143.14,143.13,122.19138888]
[1741382389116,0.0001,143.14,143.13,73.91381887]
[1741382389319,0.0001,143.14,143.13,55.26417001]
[1741382389529,0.0001,143.14,143.13,48.27757001]
[1741382389738,0.0001,143.14,143.13,66.92721887]
[1741382390114,0.0001,143.14,143.12,48.27757001]
[1741382390536,0.0001,143.14,143.13,66.92721887]
[1741382390744,0.0001,143.14,143.11,18.64964886]
[1741382391036,0.0001,143.14,143.08,18.64964886]
[1741382391337,0.0001,143.14,143.12,48.27757001]
[1741382391528,0.0001,143.14,143.04,6.991]
[1741382391734,48.27767001,143.14,143.08,48.27757001]
[1741382392151,48.27767001,143.14,143.07,48.27757001]
[1741382392322,0.0001,143.14,143.11,48.27757001]
[1741382392714,0.0001,143.14,143.09,48.27757001]
[1741382392915,0.0001,143.14,143.08,48.27757001]
[1741382393320,48.27757001,143.12,143.05,48.27757001]
[1741382393641,48.27757001,143.08,143.02,48.27757001]
[1741382393937,48.27757001,143.08,143.01,48.27757001]
[1741382394135,48.27757001,143.08,143.02,48.27757001]
[1741382394345,48.27757001,143.09,143.02,48.27757001]
[1741382394714,51.07317001,143.08,143.01,48.27757001]
[1741382395043,48.27757001,143.07,143.0,48.27757001]
[1741382395222,48.27757001,143.06,143.0,48.27757001]
[1741382395428,48.27757001,143.06,142.99,48.27757001]
[1741382395632,48.27757001,143.05,142.94,59.95757001]
[1741382395927,48.27757001,143.02,142.95,48.27757001]
[1741382396632,48.27757001,143.05,142.98,48.27757001]
[1741382396839,48.27757001,143.07,143.0,48.27757001]
[1741382397225,2.7946,143.13,143.03,48.27757001]
[1741382397425,48.27757001,143.09,143.02,48.27757001]
[1741382397740,48.27757001,143.08,143.01,48.27757001]
[1741382397920,48.27757001,143.09,143.02,48.27757001]
[1741382398242,9.7812,143.13,142.98,48.27757001]
[1741382398243,48.27757001,143.05,142.98,48.27757001]
[1741382398548,48.27757001,143.03,142.96,55.27247001]
[1741382398745,48.27757001,143.04,142.97,48.27757001]
[1741382399041,59.95757001,143.07,143.0,48.27757001]
[1741382399241,27.9466,143.13,142.96,43.13194886]
[1741382399242,11.68,143.12,143.03,48.27757001]
[1741382399425,14.4749,143.12,143.04,48.27757001]
[1741382399743,48.27757001,143.11,143.04,48.27757001]
[1741382400048,48.27757001,143.12,143.05,48.27757001]
[1741382400220,48.27757001,143.11,143.05,48.27757001]
[1741382400423,48.27767001,143.14,143.07,48.27757001]
[1741382400725,0.0001,143.14,143.1,55.26567001]
[1741382400921,0.0001,143.14,143.13,48.27757001]
[1741382401324,0.0001,143.14,143.1,6.9881]
[1741382401542,48.27767001,143.14,143.08,66.94657001]
[1741382401743,0.0001,143.14,143.1,48.27757001]
[1741382401946,0.0001,143.14,143.1,1.04788098]
[1741382402127,0.0001,143.14,143.11,18.64964886]
[1741382402331,0.0001,143.14,143.13,18.64964886]
[1741382402531,0.0001,143.14,143.13,48.27757001]